fUST/lending_fUST_20260114
["ID","MTS","AMOUNT","RATE_DAILY","PERIOD"]
[401693211,1768335032852,-330138.99622413,0.00013598,2]
[401693212,1768335032867,-373.11910904,0.00013598,2]
[401693214,1768335036038,-224.26,0.00011156,2]
[401693216,1768335036063,-183.6475776,0.00011641,2]
[401693549,1768335040847,-115.3724224,0.00011641,2]
[401693551,1768335040856,-352.52064548,0.00012126,2]
[401693553,1768335040868,-21.24935452,0.00012126,2]
[401693555,1768335040877,-448.53,0.00012611,2]
[401693557,1768335040886,-104.97564085,0.00012993,2]
[401693559,1768335040897,-3569.69636256,0.00012993,2]
[401693859,1768335043912,-1959.44253199,0.00012993,2]
[401693922,1768335044507,-454.355,0.00012993,2]
[401694033,1768335045805,-304.10096153,0.00012993,2]
[401694040,1768335045860,-1502.7491497,0.00012993,2]
[401694042,1768335045869,-197.2508503,0.00013096,2]
[401696052,1768335068123,-326.0291497,0.00013096,2]
[401696056,1768335068153,-474.61919141,0.00013273,2]
[401696060,1768335068183,-500.0,0.00013273,2]
[401696064,1768335068214,-598.04,0.00013581,2]
[401696068,1768335068244,-300.0,0.00013597,2]
[401696347,1768335070954,500.0,0.00013273,2]
[401696393,1768335071428,500.13491524,0.00013273,2]
[401696527,1768335072983,500.14204238,0.00013273,2]
[401696556,1768335073265,500.0,0.00013273,2]
[401697458,1768335084558,500.0,0.00013273,2]
[401697489,1768335084881,398.83915123,0.00013273,2]
[401697495,1768335084932,306.76972099,0.00013273,2]
[401697562,1768335085762,500.0,0.00013273,2]
[401697633,1768335086601,500.0,0.00013273,2]
[401697661,1768335086887,500.0,0.00013273,2]
[401698321,1768335096217,513.89767683,0.00012328,2]
[401698324,1768335100899,382.84981111,0.00012328,2]
[401698325,1768335100923,230.59218984,0.00012328,2]
[401698326,1768335101140,418.88,0.000135,2]
[401698338,1768335107699,173.43,0.00011802,2]
[401698339,1768335108112,216.79,0.00012294,2]
[401698340,1768335108556,260.15,0.00012786,2]
[401698341,1768335108781,183.50522143,0.00012328,2]
[401698342,1768335108952,303.51,0.00013277,2]
[401698343,1768335113612,-151.0,0.000136,2]
[401698344,1768335113646,-151.0,0.000136,2]
[401698345,1768335113677,-392.24,0.000136,2]
[401698346,1768335113707,-622.17092249,0.00013641,2]
[401698347,1768335113736,-205.84,0.00013642,2]
[401698348,1768335113766,-300.0,0.00013673,2]
[401698349,1768335113795,-500.0,0.00013683,2]
[401698350,1768335113824,-1025.0,0.00013683,2]
[401698351,1768335113853,-500.0,0.00013683,2]
[401698352,1768335113882,-420.0,0.00013683,2]
[401698353,1768335113912,-500.0,0.00013683,2]
[401698354,1768335114048,-500.0,0.00013684,2]
[401698355,1768335114077,-1000.0,0.00013698,2]
[401698356,1768335114107,-1000.0,0.00013698,2]
[401698357,1768335114135,-1000.0,0.00013698,2]
[401698358,1768335114164,-1000.0,0.00013698,2]
[401698359,1768335114193,-0.01,0.00013698,2]
[401698361,1768335116737,-999.99,0.00013698,2]
[401698362,1768335116768,-1000.0,0.00013698,2]
[401698363,1768335116799,-593.71236514,0.00013698,2]
[401698364,1768335116829,-500.0,0.00013698,2]
[401698365,1768335116859,-500.0,0.00013698,2]
[401698366,1768335116888,-500.0,0.00013698,2]
[401698367,1768335116918,-500.0,0.00013698,2]
[401698368,1768335116947,-312.60526972,0.00013698,2]
[401698369,1768335119735,-187.39473028,0.00013698,2]
[401698370,1768335119764,-500.0,0.00013698,2]
[401698371,1768335119794,-500.0,0.00013698,2]
[401698372,1768335119825,-500.0,0.00013698,2]
[401698373,1768335119855,-500.0,0.00013698,2]
[401698374,1768335119885,-500.0,0.00013698,2]
[401698375,1768335119913,-500.0,0.00013698,2]
[401698376,1768335119942,-500.0,0.00013698,2]
[401698377,1768335119969,-500.0,0.00013698,2]
[401698378,1768335119996,-500.0,0.00013698,2]
[401698379,1768335120025,-80.2247712,0.00013698,2]
[401698380,1768335120142,-464.77099704,0.00013698,2]
[401698381,1768335120172,-508.87,0.00013698,2]
[401698382,1768335120204,-508.87,0.00013698,2]
[401698383,1768335120238,-508.87,0.00013698,2]
[401698384,1768335120269,-508.87,0.00013698,2]
[401698385,1768335120300,-508.87,0.00013698,2]
[401698386,1768335120330,-508.87,0.00013698,2]
[401698387,1768335120359,-508.87,0.00013698,2]
[401698388,1768335120388,-508.87,0.00013698,2]
[401698389,1768335120423,-419.67800592,0.00013698,2]
[401698393,1768335162260,155.0,0.0001,2]
[401698394,1768335178502,158.61,6.952e-05,2]
[401698395,1768335178927,190.34,7.23e-05,2]
[401698396,1768335179347,222.06,7.508e-05,2]
[401698397,1768335179781,253.78,7.786e-05,2]
[401698398,1768335180521,285.51,8.064e-05,2]
[401698399,1768335180931,317.23,8.342e-05,2]
[401698411,1768335247907,150.89,7.405e-05,2]
[401698413,1768335248850,172.45,7.68e-05,2]
[401698414,1768335249289,194.0,7.954e-05,2]
[401698415,1768335249672,215.56,8.228e-05,2]
[401698416,1768335261093,10000.0,0.00030137,120]
[401698420,1768335315689,158.28,7.696e-05,2]
[401698421,1768335316102,178.07,7.971e-05,2]
[401698422,1768335316558,168.18598639,8.246e-05,2]
[401698423,1768335336052,500.0,0.00030136,120]
[401698424,1768335336297,500.0,0.00030136,120]
[401698425,1768335336522,500.0,0.00030136,120]
[401698426,1768335336767,500.0,0.00030136,120]
[401698427,1768335336999,500.0,0.00030136,120]
[401698428,1768335337239,500.0,0.00030136,120]
[401698429,1768335337465,500.0,0.00030136,120]
[401698430,1768335337726,500.0,0.00030136,120]
[401698431,1768335337958,500.0,0.00030136,120]
[401698432,1768335338242,537.37732263,0.00030136,120]
[401698433,1768335372146,7365.0,0.00030137,120]
[401698438,1768335383329,151.39,7.399e-05,2]
[401698439,1768335383797,173.02,7.673e-05,2]
[401698441,1768335384206,194.64,7.947e-05,2]
[401698442,1768335384597,216.27,8.221e-05,2]
[401698539,1768335450976,157.81,7.403e-05,2]
[401698540,1768335451370,180.36,7.678e-05,2]
[401698541,1768335451763,202.9,7.952e-05,2]
[401698542,1768335452179,225.44,8.226e-05,2]
[401698567,1768335506247,-250.0,0.00012665,2]
[401698568,1768335506276,-353.85054609,0.00012842,2]
[401698569,1768335506441,-500.0,0.00013273,2]
[401698570,1768335506469,-500.0,0.00013273,2]
[401698571,1768335506497,-500.0,0.00013273,2]
[401698572,1768335506525,-500.0,0.00013273,2]
[401698573,1768335506555,-300.0,0.00013468,2]
[401698574,1768335506584,-300.0,0.00013468,2]
[401698575,1768335506613,-500.0,0.00013469,2]
[401698576,1768335506643,-500.0,0.00013469,2]
[401698577,1768335506673,-770.0,0.00013469,2]
[401698579,1768335509130,-500.0,0.00013469,2]
[401698580,1768335509161,-1827.8509608,0.00013506,2]
[401698582,1768335512224,-4655.7019216,0.00013506,2]
[401698584,1768335515234,-688.6061568,0.00013506,2]
[401698586,1768335518670,238.1289932,0.00012626,2]
[401698640,1768335707299,-545.269848,0.00012529,2]
[401698641,1768335707330,-1306.56001356,0.00012583,2]
[401698642,1768335707360,-300.0,0.00013272,2]
[401698643,1768335707390,-161.98565488,0.00013273,2]
[401698644,1768335707420,-338.01434512,0.00013273,2]
[401698645,1768335707450,-457.34852685,0.00013273,2]
[401698646,1768335707484,-500.0,0.00013273,2]
[401698647,1768335707516,-500.0,0.00013273,2]
[401698648,1768335707545,-392.60005877,0.00013273,2]
[401698649,1768335707579,-496.45310564,0.00013273,2]
[401698650,1768335713212,-3.54689436,0.00013273,2]
[401698651,1768335713244,-500.0,0.00013273,2]
[401698652,1768335713277,-608.0,0.00013273,2]
[401698653,1768335713310,-352.92147927,0.00013434,2]
[401698654,1768335713341,-601.54856352,0.00013451,2]
[401698655,1768335713373,-800.0,0.00013479,2]
[401698656,1768335713403,-466.16923132,0.00013506,2]
[401698657,1768335713435,-306.56431375,0.00013574,2]
[401698659,1768335719296,-2722.50903556,0.00013574,2]
[401698660,1768335719342,-448.52259365,0.00013588,2]
[401698661,1768335719376,-181.514,0.00013588,2]
[401698662,1768335722604,300.0,0.00013587,2]
[401698663,1768335756244,202.614903,0.00012693,120]
[401698665,1768335783942,151.1,7.229e-05,2]
[401698666,1768335784329,172.68,7.496e-05,2]
[401698667,1768335784724,194.27,7.764e-05,2]
[401698668,1768335785145,215.86,8.032e-05,2]
[401698669,1768335804064,500.0,0.00030136,120]
[401698670,1768335819936,-202.614903,0.00012693,2]
[401698671,1768335819965,-219.82035694,0.00013013,2]
[401698672,1768335819992,-500.20570792,0.00013273,2]
[401698673,1768335820019,-500.0,0.00013273,2]
[401698674,1768335820046,-500.10488694,0.00013273,2]
[401698675,1768335820074,-500.0,0.00013273,2]
[401698676,1768335820103,-500.0,0.00013273,2]
[401698677,1768335820354,-2309.92848355,0.00013488,2]
[401698678,1768335822797,-4493.4642164,0.00013488,2]
[401698679,1768335822827,-300.0,0.00013586,2]
[401698680,1768335822876,-413.0815672,0.00013587,2]
[401698681,1768335828913,-86.9184328,0.00013587,2]
[401698682,1768335828947,-500.0,0.00013587,2]
[401698683,1768335828976,-500.0,0.00013587,2]
[401698684,1768335829005,-500.0,0.00013587,2]
[401698685,1768335829033,-500.0,0.00013587,2]
[401698686,1768335829061,-500.0,0.00013587,2]
[401698687,1768335829089,-500.0,0.00013587,2]
[401698688,1768335829119,-390.61283829,0.00013587,2]
[401698689,1768335829148,-427.98773049,0.00013587,2]
[401698690,1768335829177,-500.0,0.00013587,2]
[401698691,1768335829206,-500.0,0.00013587,2]
[401698692,1768335829402,-188.97199684,0.00013587,2]
[401698693,1768335831970,-311.02800316,0.00013587,2]
[401698694,1768335831998,-229.22681615,0.00013587,2]
[401698695,1768335832026,-500.0,0.00013587,2]
[401698696,1768335832054,-500.0,0.00013587,2]
[401698697,1768335832082,-500.0,0.00013587,2]
[401698698,1768335832111,-377.56370936,0.00013587,2]
[401698699,1768335832139,-500.0,0.00013587,2]
[401698700,1768335832167,-500.0,0.00013587,2]
[401698701,1768335832194,-500.0,0.00013587,2]
[401698702,1768335832221,-500.0,0.00013587,2]
[401698703,1768335832250,-500.0,0.00013587,2]
[401698704,1768335832422,-164.37294266,0.00013587,2]
[401698705,1768335838111,-479.53768674,0.00013587,2]
[401698706,1768335838141,-500.0,0.00013587,2]
[401698707,1768335838171,-500.0,0.00013587,2]
[401698708,1768335838202,-500.0,0.00013587,2]
[401698709,1768335838230,-500.0,0.00013587,2]
[401698710,1768335838264,-500.0,0.00013587,2]
[401698711,1768335838293,-500.0,0.00013587,2]
[401698712,1768335838322,-500.0,0.00013587,2]
[401698713,1768335838354,-500.0,0.00013587,2]
[401698714,1768335838382,-500.0,0.00013587,2]
[401698715,1768335838538,-40.93462652,0.00013587,2]
[401698716,1768335841072,-333.33,0.00012329,2]
[401698717,1768335841102,-459.06537348,0.00013587,2]
[401698718,1768335841132,-500.0,0.00013587,2]
[401698719,1768335841164,-500.0,0.00013587,2]
[401698720,1768335841197,-500.0,0.00013587,2]
[401698721,1768335841308,-5415.21925304,0.00013588,2]
[401698722,1768335844191,-300.0,0.00013587,2]
[401698723,1768335844234,-9400.01,0.00013588,2]
[401698724,1768335865686,-487.71,0.00012329,2]
[401698725,1768335865717,-351.28628664,0.00012958,2]
[401698726,1768335865771,-8322.01742672,0.00013588,2]
[401698727,1768335865985,-10000.01,0.00013588,2]
[401698728,1768335866955,-10000.01,0.00013588,2]
[401698729,1768335867120,-3137.27667976,0.00013588,2]
[401698730,1768335867144,-3725.45664048,0.00013588,2]
[401698732,1768335868452,-471.75041113,0.00013588,2]
[401698733,1768335868482,-581.26970714,0.00013588,2]
[401698734,1768335868647,-581.26970714,0.00013588,2]
[401698735,1768335868677,-581.26970714,0.00013588,2]
[401698736,1768335868705,-581.26970714,0.00013588,2]
[401698737,1768335868734,-581.26970714,0.00013588,2]
[401698738,1768335868762,-581.26970714,0.00013588,2]
[401698739,1768335868789,-581.26970714,0.00013588,2]
[401698740,1768335868818,-337.46357064,0.00013588,2]
[401698741,1768335868987,-243.8061365,0.00013588,2]
[401698742,1768335871581,-581.26970714,0.00013588,2]
[401698743,1768335871613,-581.26970714,0.00013588,2]
[401698744,1768335871646,-581.26970714,0.00013588,2]
[401698745,1768335871676,-581.26970714,0.00013588,2]
[401698746,1768335871705,-581.26970714,0.00013588,2]
[401698747,1768335871736,-581.26970714,0.00013588,2]
[401698748,1768335871767,-581.26970714,0.00013588,2]
[401698749,1768335871798,-618.25959759,0.00013588,2]
[401698750,1768335871831,-7.45530727,0.00013588,2]
[401698751,1768335871954,-610.80429032,0.00013588,2]
[401698752,1768335872001,-618.25959759,0.00013588,2]
[401698753,1768335872034,-618.25959759,0.00013588,2]
[401698754,1768335872064,-618.25959759,0.00013588,2]
[401698755,1768335872097,-618.25959759,0.00013588,2]
[401698756,1768335872133,-618.25959759,0.00013588,2]
[401698757,1768335872178,-618.25959759,0.00013588,2]
[401698758,1768335872216,-618.25959759,0.00013588,2]
[401698759,1768335872352,-618.25959759,0.00013588,2]
[401698760,1768335872393,-618.25959759,0.00013588,2]
[401698761,1768335872426,-850.10694664,0.00013588,2]
[401698764,1768335915844,193.14,7.944e-05,2]
[401698765,1768335916249,241.42,8.275e-05,2]
[401698766,1768335916815,289.71,8.606e-05,2]
[401698767,1768335917219,337.99,8.937e-05,2]
[401698768,1768335917626,386.27,9.268e-05,2]
[401698769,1768335918094,434.56,9.599e-05,2]
[401698770,1768335918493,482.84,9.93e-05,2]
[401698780,1768335985050,168.34,6.43e-05,2]
[401698781,1768335985454,210.43,6.697e-05,2]
[401698782,1768335985837,252.52,6.965e-05,2]
[401698783,1768335986242,294.6,7.233e-05,2]
[401698784,1768335986632,336.69,7.501e-05,2]
[401698785,1768335987019,378.77,7.769e-05,2]
[401698786,1768335987423,420.86,8.037e-05,2]
[401698788,1768336005713,-406.43,0.00012329,2]
[401698789,1768336005744,-342.93,0.00012329,2]
[401698790,1768336005775,-165.38,0.00012329,2]
[401698791,1768336005805,-300.0,0.00013272,2]
[401698792,1768336005834,-500.0,0.00013273,2]
[401698793,1768336005862,-217.23459817,0.00013273,2]
[401698794,1768336005890,-500.0,0.00013273,2]
[401698795,1768336005919,-500.30400326,0.00013273,2]
[401698796,1768336005947,-500.90932308,0.00013273,2]
[401698797,1768336005976,-500.0,0.00013273,2]
[401698798,1768336006005,-519.9936575,0.00013273,2]
[401698799,1768336006034,-500.0,0.00013273,2]
[401698800,1768336008779,-826.93,0.00012329,2]
[401698801,1768336008808,-185.60453451,0.00013273,2]
[401698802,1768336008837,-500.0,0.00013273,2]
[401698803,1768336008866,-500.0,0.00013273,2]
[401698804,1768336008894,-500.0,0.00013273,2]
[401698805,1768336008924,-500.0,0.00013424,2]
[401698806,1768336008954,-738.0,0.00013424,2]
[401698807,1768336008984,-500.0,0.00013424,2]
[401698808,1768336009013,-500.0,0.00013561,2]
[401698810,1768336012531,-738.0,0.00013561,2]
[401698811,1768336012562,-500.0,0.00013561,2]
[401698812,1768336012592,-1200.0,0.00013588,2]
[401698813,1768336012622,-446.17736256,0.00013588,2]
[401698814,1768336012652,-469.91409068,0.00013588,2]
[401698815,1768336012681,-208.61818993,0.00013588,2]
[401698816,1768336012711,-500.0,0.00013588,2]
[401698817,1768336012742,-571.54562549,0.00013588,2]
[401698818,1768336014803,-7006.40427714,0.00013589,2]
[401698857,1768336055724,168.15,7.779e-05,2]
[401698859,1768336091212,-500.0,0.00013273,2]
[401698860,1768336091242,-500.0,0.00013273,2]
[401698861,1768336091271,-195.41,0.00013273,2]
[401698862,1768336091302,-40.0161751,0.0001349,2]
[401698863,1768336091403,-7361.0076498,0.0001349,2]
[401698867,1768336097084,-168.15,0.0001349,2]
[401698868,1768336097114,-300.0,0.00013588,2]
[401698869,1768336097168,-9063.71,0.00013589,2]
[401699010,1768336231743,-598.0,0.00012588,2]
[401699011,1768336231752,-300.0,0.00012588,2]
[401699012,1768336231762,-350.36360261,0.000128,2]
[401699013,1768336231772,-654.24693872,0.00013012,2]
[401699014,1768336231782,-300.0,0.00013272,2]
[401699016,1768336231791,-1200.0,0.00013272,2]
[401699017,1768336231800,-500.0,0.00013273,2]
[401699019,1768336231810,-500.70542485,0.00013273,2]
[401699021,1768336231819,-500.0,0.00013273,2]
[401699022,1768336231829,-500.0,0.00013273,2]
[401699023,1768336231838,-500.0,0.00013273,2]
[401699024,1768336231847,-500.0,0.00013273,2]
[401699025,1768336231856,-500.0,0.00013273,2]
[401699026,1768336231865,-500.0,0.00013273,2]
[401699027,1768336231874,-500.0,0.00013273,2]
[401699028,1768336231883,-500.11515149,0.00013273,2]
[401699029,1768336231892,-500.0,0.00013273,2]
[401699030,1768336231902,-185.44336633,0.00013273,2]
[401699031,1768336231912,-500.0,0.00013273,2]
[401699032,1768336231923,-500.0,0.00013273,2]
[401699033,1768336231932,-500.0,0.00013273,2]
[401699034,1768336231941,-161.98565488,0.00013273,2]
[401699035,1768336231950,-500.0,0.00013273,2]
[401699036,1768336231959,-34247.354318,0.00013471,2]
[401699038,1768336231968,-577.94915847,0.00013588,2]
[401699039,1768336231978,-500.0,0.00013588,2]
[401699041,1768336231987,-577.94915847,0.00013588,2]
[401699043,1768336231996,-251.49358315,0.00013588,2]
[401699044,1768336232006,-577.94915847,0.00013588,2]
[401699045,1768336232015,-500.0,0.00013588,2]
[401699046,1768336232024,-500.0,0.00013588,2]
[401699047,1768336232034,-667.39550806,0.00013588,2]
[401699048,1768336232043,-500.0,0.00013588,2]
[401699049,1768336232053,-500.0,0.00013588,2]
[401699050,1768336232061,-500.0,0.00013588,2]
[401699051,1768336232071,-500.0,0.00013588,2]
[401699052,1768336232079,-250.0,0.00013588,2]
[401699053,1768336232088,-500.0,0.00013588,2]
[401699054,1768336232097,-318.32981622,0.00013588,2]
[401699055,1768336232106,-157.89191111,0.00013588,2]
[401699056,1768336232116,-500.0,0.00013588,2]
[401699057,1768336232125,-225.77683162,0.00013588,2]
[401699058,1768336232134,-500.0,0.00013588,2]
[401699059,1768336232144,-500.0,0.00013588,2]
[401699060,1768336232153,-433.06867473,0.00013588,2]
[401699061,1768336232169,-66.93132527,0.00013588,2]
[401699062,1768336232178,-500.0,0.00013588,2]
[401699063,1768336232187,-500.0,0.00013588,2]
[401699064,1768336232196,-606.84304177,0.00013588,2]
[401699065,1768336232206,-500.0,0.00013588,2]
[401699066,1768336232216,-500.0,0.00013588,2]
[401699067,1768336232225,-500.0,0.00013588,2]
[401699068,1768336232234,-500.0,0.00013588,2]
[401699069,1768336232243,-49840.30668018,0.00013589,2]
[401699070,1768336232254,-59214.90519128,0.00013589,2]
[401699071,1768336232264,-15336.04683903,0.0001359,2]
[401699638,1768336242874,-718.92036755,0.0001359,2]
[401699658,1768336243138,-272.33990001,0.0001359,2]
[401699924,1768336245940,-14945.71659651,0.0001359,2]
[401699926,1768336245950,-2230.315306,0.0001359,2]
[401699928,1768336245959,-168.3888056,0.0001359,2]
[401699930,1768336245968,-174.61919141,0.0001359,2]
[401699932,1768336245977,-181.08010149,0.0001359,2]
[401699947,1768336246102,-187.78006525,0.0001359,2]
[401699949,1768336246117,-194.72792766,0.0001359,2]
[401699952,1768336246128,-201.93286099,0.0001359,2]
[401699953,1768336246139,-209.40437684,0.0001359,2]
[401699955,1768336246148,-217.15233878,0.0001359,2]
[401699957,1768336246158,-225.18697532,0.0001359,2]
[401699959,1768336246167,-233.51889341,0.0001359,2]
[401699961,1768336246178,-461.67526834,0.0001359,2]
[401699963,1768336246187,-242.15909246,0.0001359,2]
[401699965,1768336246196,-251.11897888,0.0001359,2]
[401699967,1768336246205,-260.4103811,0.0001359,2]
[401699969,1768336246214,-270.0455652,0.0001359,2]
[401699971,1768336246223,-280.03725112,0.0001359,2]
[401699973,1768336246232,-290.39862941,0.0001359,2]
[401699975,1768336246241,-301.1433787,0.0001359,2]
[401699977,1768336246250,-529.570018,0.00013594,2]
[401699979,1768336246260,-205.85900327,0.00013597,2]
[401699981,1768336246269,-136018.22281688,0.00013598,2]
[401700215,1768336270912,-500.0,0.00013273,2]
[401700216,1768336270949,-500.0,0.00013273,2]
[401700217,1768336270985,-500.0,0.00013273,2]
[401700218,1768336271017,-500.09394672,0.00013273,2]
[401700219,1768336271054,-500.0,0.00013273,2]
[401700220,1768336271089,-500.24269708,0.00013273,2]
[401700221,1768336271122,-164.654,0.00013498,2]
[401700222,1768336271158,-300.0,0.00013597,2]
[401700225,1768336277386,3070.0287124,0.000135,2]
[401700227,1768336279791,-288.28805216,0.00013273,2]
[401700228,1768336279824,-4144.59301246,0.000135,2]
[401700233,1768336287846,500.0,0.00013273,2]
[401700235,1768336289740,500.0,0.00013273,2]
[401700236,1768336289839,134.24787076,0.00013273,2]
[401700237,1768336289859,365.75212924,0.00013273,2]
[401700253,1768336296789,417.28855737,0.00013012,2]
[401700258,1768336303964,181.514,0.00013588,2]
[401700272,1768336330967,378.31407373,0.00013273,2]
[401700327,1768336382810,150.87245887,0.00013597,2]
[401700328,1768336382835,149.12754113,0.00013597,2]
[401700329,1768336383645,598.53187916,0.00013273,2]
[401700344,1768336386917,525.38080859,0.00013273,2]
[401700376,1768336405933,500.0,0.00013273,2]
[401700377,1768336406905,500.0,0.00013273,2]
[401700378,1768336407072,500.0,0.00013273,2]
[401700426,1768336504067,167.61597056,0.00013273,2]
[401700427,1768336504417,500.0,0.00013273,2]
[401700429,1768336505373,500.0,0.00013273,2]
[401700431,1768336506986,1200.0,0.00013597,2]
[401700437,1768336511499,323.39571937,0.00013598,2]
[401700440,1768336512533,2230.315306,0.00013598,2]
[401700441,1768336516270,2305.64277519,0.00013598,2]
[401700442,1768336516295,10000.01,0.00013598,2]
[401700443,1768336516320,5017.55213959,0.00013598,2]
[401700444,1768336517009,168.3888056,0.00013598,2]
[401700446,1768336517650,4814.06905481,0.00013499,2]
[401700447,1768336517674,2016.37025396,0.00013499,2]
[401700448,1768336517788,174.61919141,0.00013598,2]
[401700450,1768336518418,181.08010149,0.00013598,2]
[401700453,1768336519554,187.78006525,0.00013598,2]
[401700457,1768336520199,194.72792766,0.00013598,2]
[401700459,1768336520805,201.93286099,0.00013598,2]
[401700460,1768336521427,209.40437684,0.00013598,2]
[401700461,1768336522038,217.15233878,0.00013598,2]
[401700462,1768336522811,225.18697532,0.00013598,2]
[401700463,1768336523272,461.67526834,0.00013598,2]
[401700464,1768336523440,233.51889341,0.00013598,2]
[401700465,1768336524056,242.15909246,0.00013598,2]
[401700466,1768336524699,251.11897888,0.00013598,2]
[401700467,1768336524740,405.59216637,0.00013273,2]
[401700468,1768336525334,257.10591565,0.00013598,2]
[401700470,1768336526325,500.0,0.00013273,2]
[401700471,1768336526399,500.0,0.00013273,2]
[401700480,1768336562569,300.0,0.00013597,2]
[401700488,1768336578635,500.0,0.00013595,2]
[401700489,1768336579225,677.0,0.00013595,2]
[401700495,1768336597286,2063.58559319,0.0001288,2]
[401700496,1768336597310,1648.81040711,0.0001288,2]
[401700502,1768336617037,681.81950031,0.0001,2]
[401700506,1768336638857,2051.1776015,0.00013588,2]
[401700508,1768336643375,532.11170535,0.00013273,2]
[401700510,1768336644552,500.0,0.00013273,2]
[401700513,1768336649509,500.0,0.00013595,2]
[401700539,1768336732758,2470.8363284,0.00013456,2]
[401700545,1768336747115,428.65171728,0.00013588,2]
[401700550,1768336750268,500.0,0.0001347,2]
[401700551,1768336750299,500.0,0.0001347,2]
[401700552,1768336750331,186.60274005,0.0001347,2]
[401700553,1768336750355,313.39725995,0.0001347,2]
[401700554,1768336750387,500.0,0.0001347,2]
[401700555,1768336750424,500.0,0.0001347,2]
[401700556,1768336750456,500.0,0.0001347,2]
[401700557,1768336750504,500.0,0.0001347,2]
[401700558,1768336750562,500.0,0.0001347,2]
[401700559,1768336750616,571.38804159,0.0001347,2]
[401700562,1768336753460,500.0,0.0001347,2]
[401700563,1768336753519,500.0,0.0001347,2]
[401700564,1768336753579,500.0,0.0001347,2]
[401700565,1768336753615,500.0,0.0001347,2]
[401700566,1768336753647,500.0,0.0001347,2]
[401700567,1768336753679,500.0,0.0001347,2]
[401700568,1768336753710,500.0,0.0001347,2]
[401700569,1768336753741,500.0,0.0001347,2]
[401700570,1768336753773,500.0,0.0001347,2]
[401700571,1768336753804,500.0,0.0001347,2]
[401700572,1768336753835,500.0,0.0001347,2]
[401700573,1768336753873,500.0,0.0001347,2]
[401700574,1768336753905,500.0,0.0001347,2]
[401700575,1768336753937,115.22469846,0.0001347,2]
[401700576,1768336753960,384.77530154,0.0001347,2]
[401700577,1768336753992,500.0,0.0001347,2]
[401700578,1768336754024,500.0,0.0001347,2]
[401700579,1768336754069,261.73276816,0.0001347,2]
[401700580,1768336754101,500.0,0.0001347,2]
[401700581,1768336754132,500.0,0.0001347,2]
[401700582,1768336754164,500.0,0.0001347,2]
[401700583,1768336754196,500.0,0.0001347,2]
[401700584,1768336754227,500.0,0.0001347,2]
[401700585,1768336754261,500.0,0.0001347,2]
[401700586,1768336754292,500.0,0.0001347,2]
[401700587,1768336754324,500.0,0.0001347,2]
[401700588,1768336754357,500.0,0.0001347,2]
[401700589,1768336754396,500.0,0.0001347,2]
[401700590,1768336754434,500.0,0.0001347,2]
[401700591,1768336754466,500.0,0.0001347,2]
[401700592,1768336754656,500.0,0.0001347,2]
[401700594,1768336765096,500.0,0.00013273,2]
[401700611,1768336810299,500.0,0.0001347,2]
[401700612,1768336810369,500.0,0.0001347,2]
[401700614,1768336810435,353.5019303,0.0001347,2]
[401700615,1768336810462,146.4980697,0.0001347,2]
[401700616,1768336810515,500.0,0.0001347,2]